bitfinex-derivatives/quotes_ETHF0:USTF0_20241231
["timestamp","ask_amount","ask_price","bid_price","bid_amount"]
[1735664686149,3.50149,3411.2,3411.1,0.29369]
[1735664686450,0.2937,3411.1,3410.9,0.29371]
[1735664686650,0.2937,3411.1,3411.0,0.2937]
[1735664687053,3.2078,3411.2,3410.8,0.4264]
[1735664687246,3.2078,3411.2,3411.1,0.29369]
[1735664689557,3.50148,3411.2,3411.1,0.29369]
[1735664689856,0.2937,3411.1,3411.0,0.2937]
[1735664690058,0.2937,3411.0,3410.9,0.7274]
[1735664690250,0.2937,3411.0,3410.9,0.72741]
[1735664692054,0.2937,3411.0,3410.8,0.4264]
[1735664692055,0.29371,3410.9,3410.8,0.4264]
[1735664692258,0.29371,3410.9,3410.6,0.29373]
[1735664692259,0.29373,3410.7,3410.6,0.29373]
[1735664693657,0.29375,3410.5,3410.4,0.29375]
[1735664695455,1.17501,3410.8,3410.2,3.2078]
[1735664695647,0.29378,3410.2,3410.1,0.29377]
[1735664697049,3.2078,3410.4,3409.8,0.43]
[1735664697248,0.73438,3410.5,3409.4,0.29383]
[1735664697249,0.29384,3409.5,3409.4,0.29383]
[1735664697860,0.29382,3409.6,3409.5,0.29382]
[1735664698258,3.2078,3410.0,3409.5,2.35426117]
[1735664698456,3.50159,3410.0,3409.9,0.29379]
[1735664699956,0.29381,3409.9,3409.8,0.2938]
[1735664700154,3.2078,3410.0,3409.5,2.35426117]
[1735664700355,0.29383,3409.6,3409.5,0.29382]
[1735664700662,0.29383,3409.5,3409.4,0.29383]
[1735664700861,0.73452,3409.8,3409.2,0.71505]
[1735664700862,0.29385,3409.3,3409.2,0.71505]
[1735664701254,0.29384,3409.4,3409.3,0.29384]
[1735664701758,0.29385,3409.3,3409.2,0.71505]
[1735664702160,0.29384,3409.4,3409.3,0.29384]
[1735664702861,0.29383,3409.6,3409.5,0.29382]
[1735664703460,0.29382,3409.7,3409.6,0.29381]
[1735664704057,0.4487,3409.9,3409.2,2.35426117]
[1735664704361,0.4487,3409.9,3409.5,2.35426117]
[1735664704661,0.29382,3409.7,3409.6,0.29382]
[1735664705863,0.29384,3409.4,3409.3,1.203]
[1735664706265,0.29386,3409.2,3409.0,0.72397]
[1735664706564,0.29386,3409.1,3409.0,0.72397]
[1735664706756,5.56206117,3409.2,3408.4,4.58555065]
[1735664707064,0.29392,3408.5,3408.4,4.58555065]
[1735664707864,0.29393,3408.3,3408.2,3.50174]
[1735664708057,3.94254,3408.8,3408.2,3.2078]
[1735664708257,3.94254,3408.8,3408.4,0.29392]
[1735664708258,0.29392,3408.5,3408.4,0.29392]
[1735664709856,0.29393,3408.4,3408.2,3.50173]
[1735664710062,0.29394,3408.3,3408.2,0.29394]
[1735664710363,3.94254,3408.8,3407.9,1.6522]
[1735664710364,0.73477,3408.7,3407.9,1.6522]
[1735664710561,0.4466,3408.6,3408.5,0.29392]
[1735664710964,0.74051,3408.6,3408.5,0.29392]
[1735664711160,0.4466,3408.6,3408.5,0.29392]
[1735664711664,0.74051,3408.6,3408.5,0.29392]
[1735664712165,3.2078,3408.8,3408.2,3.94265]
[1735664712356,3.2078,3408.8,3408.7,0.2939]
[1735664712756,3.2078,3408.8,3408.7,1.4979]
[1735664713063,3.2078,3409.8,3409.7,0.29381]
[1735664713459,3.2078,3410.2,3409.5,3.55826117]
[1735664713662,0.29379,3410.0,3409.5,3.55826117]
[1735664713867,0.29379,3410.0,3409.9,0.2938]
[1735664714064,0.29379,3410.0,3409.5,1.204]
[1735664714065,0.29379,3410.0,3409.8,0.2938]
[1735664714261,0.29379,3410.0,3409.5,1.204]
[1735664714565,0.29379,3410.0,3409.9,0.2938]
[1735664714766,1.56508,3410.1,3410.0,0.29379]
[1735664714966,1.2713,3410.1,3410.0,0.29379]
[1735664715468,3.2078,3410.6,3409.7,3.2078]
[1735664715664,3.6312,3410.6,3409.7,3.2078]
[1735664715866,0.29377,3410.3,3409.7,3.94234]
[1735664716064,3.2078,3410.6,3410.1,2.35426117]
[1735664716268,0.8509,3410.8,3410.6,0.29373]
[1735664716269,0.29373,3410.7,3410.6,0.29373]
[1735664716463,0.8509,3410.8,3410.7,0.29373]
[1735664716464,1.14462,3410.8,3410.7,0.29373]
[1735664716664,0.8509,3410.8,3410.7,0.29373]
[1735664716865,0.8509,3410.8,3410.2,4.8316]
[1735664717071,3.2078,3410.6,3410.2,1.204]
[1735664717371,0.29376,3410.4,3410.2,1.49777]
[1735664717572,0.29376,3410.3,3410.2,0.29377]
[1735664717766,0.29375,3410.4,3410.2,0.29377]
[1735664717973,0.29375,3410.4,3409.8,1.204]
[1735664717974,0.29373,3410.7,3410.5,0.29374]
[1735664718167,0.8509,3410.8,3409.9,0.7345]
[1735664718771,0.8509,3410.8,3409.8,3.55826117]
[1735664718973,0.29375,3410.5,3410.3,0.29376]
[1735664719269,0.29375,3410.5,3410.4,0.29375]
[1735664719659,0.8509,3410.8,3409.8,3.55826117]
[1735664719865,0.29374,3410.6,3410.4,0.29375]
[1735664720069,0.29374,3410.6,3410.5,0.29374]
[1735664720266,3.50154,3410.6,3410.4,0.29375]
[1735664720461,0.8509,3410.8,3409.8,3.55826117]
[1735664720665,0.29374,3410.6,3410.4,0.29374]
[1735664720871,0.8509,3410.8,3409.9,0.73449]
[1735664721060,0.29373,3410.7,3410.3,0.29376]
[1735664721265,0.29375,3410.5,3410.3,0.29376]
[1735664721963,0.8509,3410.8,3409.8,3.55826117]
[1735664722164,0.29379,3410.0,3409.8,0.2938]
[1735664722364,0.29382,3409.6,3409.5,0.4198]
[1735664722564,0.29382,3409.6,3409.4,0.29384]
[1735664722769,0.29381,3409.7,3409.3,0.29385]
[1735664722967,3.2078,3409.8,3409.3,0.29385]
[1735664723164,0.29383,3409.5,3409.3,0.29385]
[1735664723566,3.2078,3409.8,3409.0,0.4482]
[1735664723873,3.2078,3409.8,3409.2,2.35426117]
[1735664724066,3.50161,3409.8,3409.7,0.29381]
[1735664724869,3.2078,3409.8,3409.7,0.29381]
[1735664725168,0.4228,3409.9,3409.8,0.2938]
[1735664725563,0.4228,3409.9,3409.3,4.4108]
[1735664725769,0.2938,3409.8,3409.7,0.29381]
[1735664725964,0.7166,3409.9,3409.7,0.29381]
[1735664726170,0.7166,3409.9,3409.8,0.2938]
[1735664726371,0.7166,3409.9,3409.7,0.29381]
[1735664726771,0.2938,3409.8,3409.7,0.29381]
[1735664726970,0.4228,3409.9,3409.2,2.35426117]
[1735664727173,0.29381,3409.8,3409.6,0.29382]
[1735664727472,0.4228,3409.9,3409.2,2.35426117]
[1735664727673,0.73453,3409.7,3409.0,0.74206]
[1735664727869,0.29389,3408.8,3408.7,0.2939]
[1735664728070,3.2078,3409.0,3408.3,3.658]
[1735664728372,0.4178,3408.9,3408.4,0.29391]
[1735664728569,0.4178,3408.9,3408.3,3.658]
[1735664728772,0.29394,3408.2,3408.1,0.29394]
[1735664728983,0.29394,3408.3,3408.2,0.29393]
[1735664729269,0.29395,3408.1,3408.0,0.29396]
[1735664729477,0.4631,3408.5,3408.0,0.29396]
[1735664729670,0.29395,3408.1,3408.0,0.29396]
[1735664729871,0.29394,3408.3,3408.2,0.29393]
[1735664730077,0.4631,3408.5,3407.8,2.35426117]
[1735664730269,0.29395,3408.2,3408.1,0.29395]
[1735664730573,0.4631,3408.5,3407.7,1.6532]
[1735664730772,0.75702,3408.5,3408.4,0.29392]
[1735664731273,0.4631,3408.5,3408.4,0.29392]
[1735664731681,0.75701,3408.5,3408.4,0.29392]
[1735664731867,0.4178,3408.9,3408.7,0.29389]
[1735664732076,0.2939,3408.7,3408.6,0.2939]
[1735664732383,0.4178,3408.9,3408.8,0.29389]
[1735664733866,0.71168,3408.9,3408.8,0.29389]
[1735664734069,0.4178,3408.9,3408.8,0.29389]
[1735664735567,0.71169,3408.9,3408.4,0.8845]
[1735664735773,0.71169,3408.9,3408.7,0.2939]
[1735664736178,0.71169,3408.9,3408.4,0.8845]
[1735664736380,0.71169,3408.9,3408.8,0.29389]
[1735664736584,0.29391,3408.7,3408.5,0.29391]
[1735664737273,0.29392,3408.6,3408.4,0.72332]
[1735664737477,0.29392,3408.6,3408.1,1.203]
[1735664737478,0.4178,3408.9,3408.3,0.29393]
[1735664737678,0.29392,3408.5,3408.3,0.29393]
[1735664737870,3.2078,3408.6,3408.3,0.29393]
[1735664738076,0.29392,3408.5,3408.3,0.29393]
[1735664738278,0.29392,3408.5,3408.1,1.203]
[1735664738677,0.29392,3408.5,3408.3,0.29393]
[1735664739483,0.29392,3408.5,3408.4,0.29392]
[1735664739977,3.2078,3408.6,3408.1,1.203]
[1735664740178,0.29392,3408.5,3408.4,0.29392]
[1735664740379,3.50171,3408.6,3408.4,0.29392]
[1735664741385,3.2078,3408.6,3408.5,0.29392]
[1735664741581,0.71168,3408.9,3408.7,0.29389]
[1735664741780,0.71168,3408.9,3408.8,0.29389]
[1735664741781,0.4178,3408.9,3408.8,0.29389]
[1735664742175,0.4178,3408.9,3408.3,3.94264]
[1735664742382,0.4178,3408.9,3408.6,0.2939]
[1735664742584,0.2939,3408.7,3408.6,0.2939]
[1735664742785,0.29391,3408.6,3408.5,0.29391]
[1735664742989,0.2939,3408.7,3408.5,0.29391]
[1735664743279,0.4178,3408.9,3407.9,6.87605121]
[1735664743488,0.4178,3408.9,3408.4,0.29392]
[1735664743489,0.29392,3408.5,3408.4,0.29392]
[1735664743687,0.29396,3408.0,3407.9,0.4332]
[1735664743885,0.29396,3408.0,3406.9,11.46387664]
[1735664743886,0.294,3407.5,3407.4,4.58555065]
[1735664744094,3.5018,3407.5,3407.4,4.58555065]
[1735664744292,3.2078,3407.5,3406.8,4.58555065]
[1735664744697,3.6285,3407.9,3407.8,0.29398]
[1735664744895,0.459,3408.4,3408.3,0.29393]
[1735664745090,0.29391,3408.7,3408.5,0.29391]
[1735664745295,0.29391,3408.7,3408.6,0.29391]
[1735664745596,0.29392,3408.5,3408.4,0.29392]
[1735664745793,0.29389,3408.8,3408.6,0.2939]
[1735664746298,0.29391,3408.6,3408.5,0.29391]
[1735664746501,0.2939,3408.7,3408.5,0.29391]
[1735664746803,0.29393,3408.4,3408.3,0.29393]
[1735664746995,3.6544,3408.9,3408.4,0.29392]
[1735664747298,0.29392,3408.5,3408.0,3.2078]
[1735664747495,0.29391,3408.6,3408.4,0.29392]
[1735664747697,0.29392,3408.5,3408.4,0.29392]
[1735664749301,0.29389,3408.8,3408.3,0.29393]
[1735664749491,0.29392,3408.5,3408.4,0.29392]
[1735664750208,3.6544,3408.9,3407.6,4.0984]
[1735664750402,3.2078,3408.3,3407.7,1.204]
[1735664750721,3.5017,3408.8,3408.6,0.2939]
[1735664751093,3.5017,3408.8,3408.7,0.2939]
[1735664751295,1.15618,3409.0,3408.8,0.29389]
[1735664751597,0.29388,3408.9,3408.7,0.29389]
[1735664751798,1.15618,3409.0,3408.3,0.8802]
[1735664752002,0.71458,3409.0,3408.4,3.2078]
[1735664752302,0.71458,3409.0,3408.9,0.29388]
[1735664753799,3.2078,3409.2,3408.9,0.29388]
[1735664753997,0.29387,3409.1,3408.9,0.29388]
[1735664754399,0.29387,3409.1,3408.5,0.7348]
[1735664754598,3.2078,3409.2,3408.5,0.7348]
[1735664754799,3.2078,3409.2,3409.1,0.29386]
[1735664755199,3.50166,3409.2,3409.1,0.29386]
[1735664756099,0.29387,3409.1,3409.0,0.29387]
[1735664757407,0.29388,3409.0,3408.9,0.29388]
[1735664758406,3.2078,3409.2,3408.4,5.1466]
[1735664758599,0.29389,3408.9,3408.8,0.29388]
[1735664758800,3.2078,3409.2,3408.4,5.1466]
[1735664759105,3.50166,3409.2,3409.1,0.29386]
[1735664759306,0.29388,3409.0,3408.9,0.29387]
[1735664759500,3.50166,3409.2,3409.1,0.29386]
[1735664760705,3.2078,3409.2,3409.1,0.29386]
[1735664762109,3.2078,3409.2,3408.9,0.4535]
[1735664762408,0.29387,3409.0,3408.9,0.4535]
[1735664762610,0.29388,3408.9,3408.8,0.29388]
[1735664763303,0.73473,3408.9,3408.4,3.2078]
[1735664763503,0.29394,3408.4,3408.3,0.29393]
[1735664764204,0.29395,3408.1,3408.0,3.50175]
[1735664764402,0.29395,3408.1,3408.0,3.2078]
[1735664764601,0.29395,3408.1,3408.0,3.50176]
[1735664766310,0.29395,3408.1,3408.0,0.29396]
[1735664766506,0.73486,3408.2,3407.5,0.4332]
[1735664766711,0.29398,3407.8,3407.7,0.29398]
[1735664767109,5.56417654,3408.0,3407.5,0.4332]
[1735664767311,0.29401,3407.4,3407.3,3.50182]
[1735664768210,0.29401,3407.4,3407.3,3.2078]
[1735664768611,0.4611,3407.6,3406.3,0.73525]
[1735664768612,3.2078,3407.5,3406.3,0.73525]
[1735664768911,0.29409,3406.5,3406.4,0.29409]
[1735664769117,2.35637654,3406.8,3406.3,0.4419]
[1735664769304,0.4611,3406.7,3406.4,0.2941]
[1735664769506,0.29409,3406.5,3406.4,0.2941]
[1735664769707,0.29411,3406.4,3406.2,0.29411]
[1735664770012,0.29411,3406.4,3406.1,3.2078]
[1735664770013,0.29409,3406.5,3406.3,0.29411]
[1735664770213,0.29411,3406.3,3406.2,0.29411]
[1735664770607,3.6689,3406.7,3406.0,0.29413]
[1735664770608,0.29411,3406.2,3406.0,0.29413]
[1735664770817,2.35637654,3406.5,3405.9,0.29413]
[1735664770818,0.29413,3406.1,3405.9,0.29413]
[1735664771017,3.2078,3406.3,3405.9,0.29413]
[1735664771218,0.29413,3406.1,3405.9,0.29413]
[1735664771412,0.29413,3406.0,3405.4,1.204]
[1735664771621,0.4567,3406.2,3405.4,1.204]
[1735664771918,0.29412,3406.1,3405.8,0.29414]
[1735664772116,0.29412,3406.1,3405.3,2.08]
[1735664772419,0.29412,3406.1,3405.9,0.29414]
[1735664772714,3.10719654,3406.2,3405.9,0.29414]
[1735664773120,0.4567,3406.2,3405.3,2.08]
[1735664773322,3.2078,3406.3,3405.3,2.08]
[1735664773323,3.2078,3406.3,3406.2,0.29411]
[1735664773812,3.2078,3406.3,3405.4,0.73547]
[1735664774009,3.2078,3406.3,3405.8,0.29414]
[1735664774207,0.29413,3406.0,3405.8,0.29414]
[1735664774815,3.2078,3406.3,3405.3,2.08]
[1735664775012,0.29412,3406.2,3405.9,0.29413]
[1735664775213,3.2078,3406.3,3405.9,0.29413]
[1735664775414,3.2078,3406.3,3405.6,3.2078]
[1735664775717,0.29409,3406.5,3406.3,0.29411]
[1735664776218,3.6689,3406.7,3406.5,0.29408]
[1735664776416,3.96297,3406.7,3406.5,0.29408]
[1735664776614,3.96297,3406.7,3406.4,0.29409]
[1735664776918,3.6689,3406.7,3406.5,0.29408]
[1735664777419,3.96297,3406.7,3406.5,0.29408]
[1735664777613,3.6689,3406.7,3406.6,0.29408]
[1735664777922,3.2078,3406.7,3406.6,0.29408]
[1735664778613,0.73496,3407.8,3406.6,0.29408]
[1735664778614,3.2078,3407.6,3406.6,3.2078]
[1735664778818,11.4515169,3408.0,3407.2,2.35637654]
[1735664779017,11.4515169,3408.0,3407.9,0.29397]
[1735664779218,6.85607654,3408.4,3407.6,0.73499]
[1735664779219,4.4997,3408.4,3407.6,0.73499]
[1735664779419,1.58583,3408.4,3408.2,0.29394]
[1735664779920,4.4997,3408.4,3407.6,0.73499]
[1735664780119,0.29394,3408.3,3408.1,0.29395]
[1735664780318,6.85607654,3408.4,3407.8,0.29397]
[1735664780515,6.85607654,3408.4,3407.7,0.29398]
[1735664780715,3.50176,3408.0,3407.5,1.204]
[1735664780918,0.29397,3407.9,3407.7,0.29398]
[1735664781116,0.29397,3407.9,3407.6,0.29399]
[1735664781323,3.2078,3408.0,3407.5,1.204]
[1735664781511,3.2078,3408.0,3407.9,0.29397]
[1735664781923,3.50176,3408.0,3407.8,0.29397]
[1735664782321,3.2078,3408.0,3407.5,1.204]
[1735664782517,0.294,3407.6,3407.1,0.8856]
[1735664782724,3.2078,3408.0,3407.1,0.8856]
[1735664782924,0.29397,3407.9,3407.1,0.8856]
[1735664783125,3.2078,3408.0,3407.1,3.70315147]
[1735664783418,3.2078,3408.0,3407.9,0.29397]
[1735664784629,1.2919,3408.4,3407.5,0.73499]
[1735664784821,0.29394,3408.2,3407.9,0.29396]
[1735664785020,0.29396,3408.1,3407.8,0.29397]
[1735664785321,3.2078,3408.1,3408.0,0.29395]
[1735664785720,3.50175,3408.1,3407.4,3.2078]
[1735664786029,3.50175,3408.1,3407.8,0.29397]
[1735664786322,0.29397,3407.9,3407.7,0.29398]
[1735664786523,3.2078,3408.1,3407.4,3.2078]
[1735664786722,3.2078,3408.1,3408.0,0.29396]
[1735664786918,0.29397,3407.9,3407.7,0.29398]
[1735664787114,2.81755147,3407.9,3407.1,0.8856]
[1735664787320,0.29404,3407.1,3406.9,3.50185]
[1735664787525,0.29403,3407.2,3407.0,0.29404]
[1735664788324,0.29403,3407.2,3406.5,1.204]
[1735664788325,0.4575,3407.4,3406.5,1.204]
[1735664788527,0.29403,3407.3,3407.1,0.29403]
[1735664788823,0.29404,3407.1,3406.9,0.29405]
[1735664789028,0.4575,3407.4,3406.5,1.204]
[1735664789228,0.29403,3407.2,3407.1,0.29403]
[1735664789438,0.4575,3407.4,3406.5,1.204]
[1735664789630,0.29402,3407.3,3407.2,0.29403]
[1735664789925,0.4575,3407.4,3406.9,0.29405]
[1735664790132,0.29404,3407.1,3407.0,0.29404]
[1735664790624,0.29403,3407.2,3407.1,0.29403]
[1735664791636,0.896,3407.4,3406.4,4.40074]
[1735664791933,0.29402,3407.3,3407.2,0.29402]
[1735664792832,0.29396,3408.0,3407.9,0.29396]
[1735664793029,0.29397,3407.9,3407.8,0.29397]
[1735664793229,0.29396,3408.0,3407.7,0.29398]
[1735664793531,3.2078,3408.1,3407.7,0.29398]
[1735664793732,0.29398,3407.8,3407.7,0.29398]
[1735664793929,0.29397,3407.9,3407.7,0.29398]
[1735664794131,3.2078,3408.1,3407.7,0.29398]
[1735664794332,3.2078,3408.1,3407.2,0.8802]
[1735664794631,0.29416,3405.7,3405.4,11.75805664]
[1735664794832,3.2078,3405.8,3405.4,11.46387664]
[1735664795035,0.29416,3405.7,3405.4,11.46387664]
[1735664795230,0.29416,3405.7,3405.2,0.2942]
[1735664795430,3.2078,3405.8,3405.3,0.29418]
[1735664795431,3.50195,3405.8,3405.3,0.29418]
[1735664795631,3.50195,3405.8,3405.3,0.29419]
[1735664796135,0.29417,3405.6,3405.2,0.2942]
[1735664796739,0.29416,3405.7,3405.2,0.2942]
[1735664796937,0.29417,3405.6,3405.2,0.29419]
[1735664797130,0.29417,3405.5,3405.2,0.29419]
[1735664797330,3.2078,3405.8,3405.2,0.29419]
[1735664797531,0.29417,3405.6,3405.1,1.204]
[1735664797839,0.29417,3405.6,3405.3,0.29419]
[1735664798133,0.29418,3405.5,3405.2,0.2942]
[1735664798339,0.29418,3405.4,3405.1,1.4982]
[1735664799039,0.29418,3405.4,3405.2,0.2942]
[1735664800237,0.2942,3405.3,3405.1,1.4982]
[1735664800428,0.2942,3405.2,3405.1,1.4982]
[1735664800633,3.2078,3405.8,3405.1,0.2942]
[1735664800828,0.2942,3405.3,3405.1,1.4982]
[1735664801235,3.2078,3405.8,3404.7,0.8359]
[1735664801544,0.2942,3405.2,3405.1,0.29421]
[1735664801735,3.2078,3405.4,3404.8,1.204]
[1735664802041,0.2942,3405.2,3405.1,0.29421]
[1735664802331,3.2078,3405.4,3404.8,1.204]
[1735664802537,0.29421,3405.1,3405.0,0.29422]
[1735664802930,3.2078,3405.8,3405.0,1.204]
[1735664803129,0.29414,3405.9,3405.8,0.29415]
[1735664803439,3.2078,3406.4,3405.9,0.29413]
[1735664803636,3.2078,3406.4,3405.7,1.204]
[1735664803835,3.2078,3406.4,3405.8,0.4565]
[1735664804233,0.29413,3406.1,3405.8,0.8832]
[1735664804439,0.29413,3406.1,3406.0,0.29413]
[1735664804741,0.29413,3406.0,3405.9,0.29413]
[1735664805138,0.29413,3406.1,3406.0,0.29413]
[1735664805437,3.2078,3406.4,3406.0,0.29413]
[1735664805635,0.29412,3406.1,3406.0,0.29413]
[1735664805835,0.29414,3406.0,3405.9,0.29414]
[1735664806036,0.29414,3405.9,3405.8,0.8832]
[1735664806340,0.29418,3405.5,3405.4,0.29418]
[1735664806539,3.2078,3405.5,3405.0,0.8965]
[1735664806842,0.2942,3405.3,3405.2,0.2942]
[1735664807144,3.2078,3405.5,3405.0,0.8965]
[1735664807341,3.2078,3405.5,3405.4,0.29418]
[1735664807746,0.4548,3405.9,3405.0,1.63203]
[1735664807936,0.29415,3405.8,3405.1,1.204]
[1735664808442,0.29415,3405.8,3405.7,0.29416]
[1735664808738,0.74894,3405.9,3405.7,0.29416]
[1735664808936,0.74894,3405.9,3405.8,0.29415]
[1735664809542,3.2078,3406.0,3405.9,0.29414]
[1735664810136,3.2078,3406.0,3405.3,0.73547]
[1735664810336,3.2078,3406.0,3405.8,0.29415]
[1735664810537,3.50194,3406.0,3405.8,0.29415]
[1735664811042,3.2078,3406.0,3405.8,0.29415]
[1735664811243,0.29414,3405.9,3405.8,0.29415]
[1735664811450,3.2078,3406.0,3405.1,1.204]
[1735664811641,0.29418,3405.5,3405.4,0.29418]
[1735664811840,3.2078,3405.6,3405.5,0.29417]
[1735664811841,0.29417,3405.6,3405.5,0.29417]
[1735664812036,3.2078,3406.0,3405.7,0.29415]
[1735664812240,3.2078,3406.0,3405.3,0.73547]
[1735664812537,3.2078,3406.0,3405.9,0.29414]
[1735664812947,0.7389,3406.4,3406.3,0.29411]
[1735664813338,6.6292834,3406.5,3405.9,1.204]
[1735664813536,6.6292834,3406.5,3406.4,0.2941]
[1735664813743,6.9233734,3406.5,3406.4,0.2941]
[1735664814245,3.50189,3406.5,3406.4,0.2941]
[1735664816140,3.50189,3406.5,3406.1,0.29412]
[1735664816141,0.29412,3406.2,3406.1,0.29412]
[1735664816949,3.2078,3406.5,3406.0,0.8586]
[1735664817143,3.2078,3406.5,3406.4,0.2941]
[1735664818251,3.50189,3406.5,3406.4,0.2941]
[1735664819139,6.9233734,3406.5,3406.4,0.2941]
[1735664819549,6.6292834,3406.5,3406.4,0.2941]
[1735664819952,6.9233734,3406.5,3406.4,0.2941]
[1735664820451,0.29412,3406.2,3406.1,0.29412]
[1735664820647,6.6292834,3406.5,3406.3,0.2941]
[1735664820648,0.2941,3406.4,3406.3,0.2941]
[1735664821248,6.6292834,3406.5,3406.0,0.4353]
[1735664821545,6.6292834,3406.5,3406.4,0.2941]
[1735664821849,3.50189,3406.5,3406.4,0.2941]
[1735664822453,0.29411,3406.3,3406.2,0.2941]
[1735664823046,0.29411,3406.3,3406.0,0.4353]
[1735664823047,0.73529,3406.2,3405.3,0.73547]
[1735664823344,0.29413,3406.0,3405.9,0.29413]
[1735664824147,0.29415,3405.9,3405.8,0.29414]
[1735664824559,4.56197787,3406.0,3405.3,0.73547]
[1735664824855,4.85611787,3406.0,3405.9,0.29414]
[1735664825042,4.56197787,3406.0,3405.9,0.29414]
[1735664825946,3.6488,3406.1,3405.5,0.73543]
[1735664825947,8.21077787,3406.1,3406.0,0.29413]
[1735664826747,4.56197787,3406.1,3406.0,0.29413]
[1735664826949,4.56197787,3406.1,3406.0,1.49813]
[1735664827146,3.2078,3406.5,3406.0,1.49813]
[1735664827352,3.43721209,3406.6,3406.5,0.29409]
[1735664827750,3.73129209,3406.6,3406.5,0.29409]
[1735664828053,3.43721209,3406.6,3406.5,0.29409]
[1735664828644,0.29407,3406.7,3406.6,0.29408]
[1735664830054,0.75617,3406.8,3406.7,0.29407]
[1735664830349,0.4621,3406.8,3406.7,0.29407]
[1735664832042,0.29409,3406.5,3406.4,0.29409]
[1735664832250,3.50189,3406.5,3406.4,0.29409]
[1735664833148,3.2078,3406.5,3406.4,0.29409]
[1735664834355,0.4315,3406.7,3406.6,0.29408]
[1735664834555,3.89931209,3406.8,3406.3,0.73526]
[1735664834746,3.2078,3407.0,3406.1,1.204]
[1735664834956,3.2078,3407.0,3406.9,0.29405]
[1735664835160,3.50185,3407.0,3406.9,0.29405]
[1735664837259,0.29406,3406.9,3406.8,0.29406]
[1735664837459,0.29408,3406.7,3406.6,0.29407]
[1735664837666,3.2078,3407.0,3406.7,0.29406]
[1735664837667,0.29406,3406.8,3406.7,0.29406]
[1735664838359,6.04003152,3406.8,3406.7,0.29406]
[1735664839354,0.29406,3406.8,3406.7,0.29406]
[1735664840054,3.2078,3407.0,3406.9,0.29405]
[1735664840359,3.50185,3407.0,3406.9,0.29405]
[1735664841354,0.29407,3406.8,3406.7,0.29407]
[1735664842660,0.29408,3406.7,3406.6,0.29407]
[1735664844159,0.29407,3406.8,3406.7,0.29406]
[1735664844962,0.29409,3406.5,3406.4,0.29408]
[1735664845164,3.50189,3406.5,3406.4,0.29408]
[1735664846862,0.29411,3406.4,3406.3,0.2941]
[1735664847062,1.15871,3406.4,3406.3,0.2941]
[1735664847266,0.29412,3406.2,3406.1,0.29411]
[1735664848664,0.29414,3406.0,3405.9,0.29412]
[1735664848971,5.46510068,3406.4,3405.8,0.4214]
[1735664849162,0.29413,3406.2,3406.1,0.29411]
[1735664850369,0.29415,3406.0,3405.9,0.29413]
[1735664852268,8.95727333,3406.1,3405.6,0.4311]
[1735664852570,0.29418,3405.5,3405.4,0.29417]
[1735664852763,0.29418,3405.6,3405.5,0.29417]
[1735664853365,0.29418,3405.4,3405.3,0.29419]
[1735664854167,2.3593696,3405.5,3404.9,1.204]
[1735664854371,0.29421,3405.2,3405.1,0.2942]
[1735664855469,2.3593696,3405.2,3404.7,0.4204]
[1735664855769,0.29423,3404.9,3404.8,0.29423]
[1735664857167,5.76405592,3405.0,3404.9,0.29423]
[1735664857363,5.46982592,3405.0,3404.9,0.29423]
[1735664858066,5.76404592,3405.0,3404.9,0.29423]
[1735664858669,1.15842,3405.0,3404.9,0.29423]
[1735664858870,0.4227,3405.0,3404.9,0.29423]
[1735664859071,5.74947333,3405.1,3405.0,0.29422]
[1735664860074,4.59884738,3405.1,3405.0,0.29422]
[1735664860871,4.59884738,3405.1,3405.0,0.71432]
[1735664861072,3.44895237,3405.1,3405.0,0.71432]
[1735664861274,3.74316237,3405.1,3405.0,0.29422]
[1735664861979,3.44895237,3405.1,3405.0,0.29422]
[1735664862375,4.59884738,3405.1,3405.0,0.29422]
[1735664863682,0.2942,3405.2,3405.1,0.2942]
[1735664864683,3.502,3405.2,3405.1,0.2942]
[1735664864878,0.29422,3405.1,3405.0,0.29421]
[1735664865373,3.2078,3405.2,3404.9,0.4335]
[1735664865578,3.2078,3405.2,3405.1,0.29421]
[1735664867383,3.502,3405.2,3405.1,0.29421]
[1735664869586,3.2078,3405.2,3405.1,0.29421]
[1735664870179,3.502,3405.2,3405.1,0.29421]
[1735664871977,3.2078,3405.2,3404.9,0.4335]
[1735664872181,0.29422,3405.0,3404.9,0.72772]
[1735664872383,0.29422,3405.1,3405.0,0.29421]
[1735664876492,3.73958773,3405.1,3405.0,0.29421]
[1735664876887,3.44536773,3405.1,3405.0,0.29421]
[1735664877690,6.94737773,3405.2,3405.1,0.29421]
[1735664880187,3.50201,3405.2,3405.1,0.29421]
[1735664881787,3.2078,3405.2,3405.1,0.29421]
[1735664885996,3.73953773,3405.6,3405.1,0.29421]
[1735664885997,3.44536773,3405.6,3405.5,0.29417]
[1735664886999,3.44536773,3405.9,3405.8,0.29415]
[1735664888500,3.73950773,3405.9,3405.8,0.29415]
[1735664889001,3.44536773,3405.9,3405.8,0.29415]
[1735664889201,4.59884738,3406.0,3405.5,0.73543]
[1735664889400,4.59884738,3406.0,3405.9,0.29414]
[1735664890305,7.80664738,3406.2,3406.1,0.29412]
[1735664890595,8.10075738,3406.2,3406.1,0.29412]
[1735664890796,7.80664738,3406.2,3406.1,0.29412]
[1735664891002,4.59884738,3406.2,3406.1,0.29412]
[1735664891401,5.74947333,3406.3,3406.2,0.29411]
[1735664892802,3.45180103,3406.3,3406.2,0.29411]